bitfinex/quotes_BTCUSD_20240906
["timestamp","ask_amount","ask_price","bid_price","bid_amount"]
[1725581355143,2.470429,56353.0,56351.0,0.009]
[1725581355350,2.451329,56353.0,56351.0,0.009]
[1725581355821,2.451329,56353.0,56352.0,0.015632]
[1725581356030,2.382439,56353.0,56352.0,0.007632]
[1725581356260,2.130055,56353.0,56352.0,0.007632]
[1725581356470,2.031543,56353.0,56352.0,0.01758298]
[1725581356684,2.05011126,56353.0,56352.0,0.02258298]
[1725581356890,2.08360792,56353.0,56352.0,0.02258298]
[1725581357748,1.74113692,56353.0,56352.0,0.02258298]
[1725581357995,1.85273992,56353.0,56352.0,0.02258298]
[1725581358416,1.90003992,56353.0,56352.0,0.013632]
[1725581358641,1.95323857,56353.0,56352.0,0.013632]
[1725581359049,1.90003992,56353.0,56352.0,0.013632]
[1725581359887,1.95323857,56353.0,56352.0,0.013632]
[1725581360307,1.90003992,56353.0,56352.0,0.013632]
[1725581360529,1.85273992,56353.0,56352.0,0.013632]
[1725581360737,1.90593857,56353.0,56352.0,0.013632]
[1725581361826,1.85273992,56353.0,56352.0,0.013632]
[1725581362030,2.26084357,56353.0,56352.0,0.013632]
[1725581364054,2.20764492,56353.0,56352.0,0.013632]
[1725581364285,1.85273992,56353.0,56352.0,0.013632]
[1725581366863,2.41773792,56353.0,56352.0,0.013632]
[1725581367997,2.41752437,56353.0,56352.0,0.013632]
[1725581368947,2.19216637,56353.0,56352.0,0.013632]
[1725581369165,2.05014037,56353.0,56352.0,0.120532]
[1725581371059,2.84047737,56353.0,56352.0,0.120532]
[1725581371732,2.84047737,56353.0,56352.0,0.013632]
[1725581373372,2.24972737,56353.0,56352.0,0.208132]
[1725581373614,1.74092337,56353.0,56352.0,0.208132]
[1725581373857,1.74092337,56353.0,56352.0,0.21708298]
[1725581375985,1.86165537,56353.0,56352.0,0.21708298]
[1725581381854,1.86186892,56353.0,56352.0,0.21708298]
[1725581384476,1.86268492,56353.0,56352.0,0.21708298]
[1725581385900,1.38704792,56353.0,56352.0,0.21708298]
[1725581389788,1.38704792,56353.0,56352.0,0.12948298]
[1725581390016,1.38704792,56353.0,56352.0,0.013632]
[1725581390017,2.2455014,56353.0,56352.0,0.013632]
[1725581390492,2.19222992,56353.0,56352.0,0.013632]
[1725581391836,2.29877288,56353.0,56352.0,0.013632]
[1725581392556,2.57078688,56353.0,56352.0,0.02258298]
[1725581392783,2.33613288,56353.0,56352.0,0.02258298]
[1725581393407,2.19013588,56353.0,56352.0,0.02258298]
[1725581393659,2.17053588,56353.0,56352.0,0.02258298]
[1725581396442,2.06399292,56353.0,56352.0,0.02258298]
[1725581396665,2.17064118,56353.0,56352.0,0.02258298]
[1725581397354,2.17065465,56353.0,56352.0,0.02258298]
[1725581398918,1.84861465,56353.0,56352.0,0.02258298]
[1725581399354,2.05573562,56353.0,56352.0,0.02258298]
[1725581399574,2.05623562,56353.0,56352.0,0.02258298]
[1725581400566,1.92305692,56353.0,56352.0,0.02258298]
[1725581400821,1.38704792,56353.0,56352.0,0.24079048]
[1725581401036,1.44039608,56353.0,56352.0,0.24079048]
[1725581401254,1.4403962,56353.0,56352.0,0.24079048]
[1725581401475,1.38704792,56353.0,56352.0,0.24079048]
[1725581402153,1.44039143,56353.0,56352.0,0.24079048]
[1725581402606,1.34039143,56353.0,56352.0,0.24079048]
[1725581402608,1.28704792,56353.0,56352.0,0.24079048]
[1725581403955,1.10959592,56353.0,56352.0,0.24079048]
[1725581404423,1.28704792,56353.0,56352.0,0.24079048]
[1725581404648,0.93214292,56353.0,56352.0,0.24079048]
[1725581404876,0.91357466,56353.0,56352.0,0.24079048]
[1725581405119,0.55866966,56353.0,56352.0,0.24079048]
[1725581405837,0.55866966,56353.0,56352.0,0.25133366]
[1725581406059,0.91357466,56353.0,56352.0,0.25133366]
[1725581406557,0.91357466,56353.0,56352.0,0.24433366]
[1725581406783,0.91357466,56353.0,56352.0,0.23379048]
[1725581407000,0.91357466,56353.0,56352.0,0.25633366]
[1725581407437,0.91357466,56353.0,56352.0,0.24933366]
[1725581407674,0.91357466,56353.0,56352.0,0.26233366]
[1725581408136,0.91357466,56353.0,56352.0,0.25733366]
[1725581408360,0.91357466,56353.0,56352.0,0.26833366]
[1725581409241,0.55866966,56353.0,56352.0,0.26833366]
[1725581409470,0.533173,56353.0,56352.0,0.26833366]
[1725581409693,0.888078,56353.0,56352.0,0.26833366]
[1725581412261,0.533173,56353.0,56352.0,0.26833366]
[1725581413414,0.000816,56353.0,56352.0,0.26833366]
[1725581414128,0.000816,56353.0,56352.0,0.44578866]
[1725581414890,0.000816,56353.0,56352.0,1.15561066]
[1725581416804,0.000816,56353.0,56352.0,1.51252166]
[1725581417054,0.000816,56353.0,56352.0,1.54252166]
[1725581417985,0.000816,56353.0,56352.0,1.51852166]
[1725581418206,0.000816,56353.0,56352.0,1.53252166]
[1725581418447,0.000816,56359.0,56358.0,1.30061748]
[1725581418684,0.000816,56359.0,56358.0,1.96121963]
[1725581418924,0.000816,56359.0,56358.0,2.02953291]
[1725581419206,0.000816,56365.0,56364.0,1.30048448]
[1725581419450,0.000816,56365.0,56364.0,1.60621263]
[1725581419690,0.000816,56365.0,56364.0,1.62162676]
[1725581420188,0.000816,56365.0,56364.0,1.71822872]
[1725581420435,0.000815,56366.0,56364.0,1.71822872]
[1725581420436,0.000815,56366.0,56365.0,1.30046348]
[1725581420679,0.00082,56378.0,56372.0,0.05855848]
[1725581420930,0.00082,56378.0,56372.0,1.70618598]
[1725581421427,0.00082,56378.0,56372.0,2.07635426]
[1725581421672,0.00082,56378.0,56377.0,1.30019748]
[1725581421943,0.00021413,56380.0,56379.0,0.94541348]
[1725581422206,0.00021413,56380.0,56379.0,1.51815548]
[1725581422705,0.00021413,56380.0,56379.0,1.5334471]
[1725581424096,0.00021413,56380.0,56379.0,1.1537051]
[1725581424312,0.00021413,56380.0,56379.0,0.8129631]
[1725581424994,0.00021413,56380.0,56379.0,0.7989631]
[1725581425227,0.00021413,56380.0,56379.0,0.8269631]
[1725581425718,0.00021413,56380.0,56379.0,0.7989631]
[1725581425944,0.00021413,56380.0,56379.0,0.8129631]
[1725581426838,0.00021413,56380.0,56379.0,0.4582211]
[1725581427294,0.00021413,56380.0,56379.0,0.4442211]
[1725581427756,0.00021413,56380.0,56379.0,0.4582211]
[1725581428004,0.00021413,56380.0,56379.0,0.4442211]
[1725581428438,0.00021413,56380.0,56379.0,0.2948501]
[1725581428660,0.00021413,56380.0,56379.0,0.2848501]
[1725581428875,0.00021413,56380.0,56379.0,0.2508501]
[1725581429082,0.00021413,56380.0,56379.0,0.2608501]
[1725581429311,0.17758113,56380.0,56379.0,0.2648501]
[1725581429519,0.00021413,56380.0,56379.0,0.2648501]
[1725581429730,0.17758113,56380.0,56379.0,0.2648501]
[1725581429951,0.00021413,56380.0,56379.0,0.2648501]
[1725581430160,0.17758113,56380.0,56379.0,0.2648501]
[1725581430391,0.00021413,56380.0,56379.0,0.2648501]
[1725581431348,0.17758113,56380.0,56379.0,0.2648501]
[1725581431569,0.53231613,56380.0,56379.0,0.2648501]
[1725581431823,0.17758113,56380.0,56379.0,0.27378765]
[1725581432279,0.88786713,56380.0,56379.0,0.27378765]
[1725581432775,1.24260213,56380.0,56379.0,0.07878765]
[1725581434083,1.26743927,56380.0,56379.0,0.05455848]
[1725581435599,0.91270427,56380.0,56379.0,0.05455848]
[1725581436038,0.91270427,56380.0,56379.0,0.07878766]
[1725581436518,0.0523141,56388.0,56387.0,0.02655848]
[1725581436519,0.5322411,56388.0,56387.0,0.02655848]
[1725581436749,0.8869261,56388.0,56387.0,0.13275848]
[1725581436966,0.5322411,56388.0,56387.0,0.15701806]
[1725581437214,0.1775561,56388.0,56387.0,0.36434817]
[1725581437428,0.1775561,56388.0,56387.0,0.54169317]
[1725581437429,0.0002141,56388.0,56387.0,0.54169317]
[1725581437643,0.0002141,56388.0,56387.0,0.63069317]
[1725581437865,0.0002141,56388.0,56387.0,0.98538417]
[1725581438104,0.0002141,56388.0,56387.0,0.64469317]
[1725581438329,0.0002141,56388.0,56387.0,0.99738417]
[1725581438550,0.0002141,56388.0,56387.0,1.01138417]
[1725581438783,0.0002141,56388.0,56387.0,0.64469317]
[1725581439230,0.0002141,56388.0,56387.0,0.65869317]
[1725581439464,0.0002141,56388.0,56387.0,1.01338417]
[1725581439918,0.0002141,56388.0,56387.0,0.48134817]
[1725581440790,0.0002141,56388.0,56387.0,0.65869317]
[1725581441056,0.0002141,56388.0,56387.0,1.01338417]
[1725581441291,0.0002141,56388.0,56387.0,1.36807517]
[1725581442203,0.0002141,56388.0,56387.0,1.71876617]
[1725581442430,0.0002141,56388.0,56387.0,1.74076617]
[1725581442866,0.0002141,56388.0,56387.0,1.73876617]
[1725581443995,0.0002141,56388.0,56387.0,1.72476617]
[1725581444214,0.0010291,56388.0,56387.0,1.72476617]
[1725581444438,0.0010291,56388.0,56387.0,1.73876617]
[1725581444670,0.0010291,56388.0,56387.0,1.75276617]
[1725581445867,0.0010291,56388.0,56387.0,1.75476617]
[1725581446091,0.0010291,56388.0,56387.0,1.74076617]
[1725581446329,0.00082,56395.0,56394.0,1.03187548]
[1725581446556,0.00082,56395.0,56394.0,1.68065259]
[1725581446781,0.00082,56395.0,56394.0,1.70488162]
[1725581447253,0.00082,56395.0,56394.0,1.70288162]
[1725581447477,0.00082,56395.0,56394.0,1.34823462]
[1725581448428,0.00082,56395.0,56394.0,1.36223462]
[1725581448646,0.00082,56395.0,56394.0,1.34823462]
[1725581448918,0.00082,56395.0,56394.0,1.36223462]
[1725581449360,0.00082,56395.0,56394.0,1.34823462]
[1725581449825,0.00082,56395.0,56394.0,1.33823462]
[1725581450090,0.00082,56395.0,56394.0,0.98358762]
[1725581450774,0.00082,56395.0,56394.0,0.99758762]
[1725581451496,0.00082,56395.0,56394.0,0.24428751]
[1725581451723,0.00082,56395.0,56394.0,0.17148751]
[1725581451724,0.17814,56395.0,56394.0,0.17148751]
[1725581451958,0.532781,56395.0,56394.0,0.18548751]
[1725581452173,0.00082,56395.0,56394.0,0.17148751]
[1725581452412,0.00082,56395.0,56394.0,0.18548751]
[1725581452631,0.17814,56395.0,56394.0,0.17148751]
[1725581452871,0.00082,56395.0,56394.0,0.89678762]
[1725581453304,0.00082,56395.0,56394.0,0.91078762]
[1725581454258,0.00082,56395.0,56394.0,0.92478762]
[1725581454472,0.00082,56395.0,56394.0,0.91078762]
[1725581455152,0.00082,56395.0,56394.0,0.92478762]
[1725581456541,0.00082,56395.0,56394.0,0.57014062]
[1725581456983,0.00082,56395.0,56394.0,0.18548751]
[1725581457202,0.00082,56395.0,56394.0,0.36281051]
[1725581457645,0.532781,56395.0,56394.0,0.07878751]
[1725581457858,0.887422,56395.0,56394.0,0.07878751]
[1725581458293,0.709282,56395.0,56394.0,0.07878751]
[1725581458502,0.886602,56395.0,56394.0,0.07878751]
[1725581458711,0.531961,56395.0,56394.0,0.07878751]
[1725581460270,0.886602,56395.0,56394.0,0.07878751]
[1725581460911,0.531961,56395.0,56394.0,0.07878751]
[1725581461126,0.355455,56396.0,56394.0,0.07878751]
[1725581461339,0.532772,56396.0,56395.0,0.0176075]
[1725581461567,0.532772,56396.0,56395.0,0.04171336]
[1725581462234,0.01938826,56396.0,56395.0,0.05066434]
[1725581462440,0.01938826,56396.0,56395.0,0.14506434]
[1725581462663,0.01938826,56396.0,56395.0,0.25286434]
[1725581462891,0.01938826,56396.0,56395.0,0.43018434]
[1725581463162,0.01938826,56396.0,56395.0,0.78482534]
[1725581463797,0.01938826,56396.0,56395.0,1.13946634]
[1725581464533,0.01938826,56396.0,56395.0,1.50610734]
[1725581464749,0.01938826,56396.0,56395.0,1.51810734]
[1725581464969,0.01938826,56396.0,56395.0,1.16346634]
[1725581465185,0.01938826,56396.0,56395.0,1.17746634]
[1725581465400,0.00082,56396.0,56395.0,1.17746634]
[1725581466285,0.00082,56396.0,56395.0,1.53210734]
[1725581466496,0.00082,56396.0,56395.0,1.53410734]
[1725581467794,0.00082,56396.0,56395.0,1.53210734]
[1725581468011,0.00082,56396.0,56395.0,1.53410734]
[1725581469826,0.00082,56396.0,56395.0,1.55410734]
[1725581471155,0.00082,56410.0,56408.0,0.01]
[1725581471388,0.00021397,56421.0,56420.0,0.57028448]
[1725581471621,0.00021397,56421.0,56420.0,2.00886659]
[1725581471856,4e-05,56431.0,56430.0,0.76551959]
[1725581472083,4e-05,56431.0,56430.0,0.02655848]
[1725581472317,4e-05,56431.0,56430.0,0.06055664]
[1725581472540,4e-05,56431.0,56430.0,0.05055664]
[1725581473230,4e-05,56431.0,56430.0,0.06455664]
[1725581473463,4e-05,56431.0,56430.0,0.05055664]
[1725581473689,0.531662,56431.0,56430.0,0.05055664]
[1725581473915,0.177247,56431.0,56430.0,0.06455664]
[1725581474136,4e-05,56431.0,56430.0,0.04055848]
[1725581474363,4e-05,56431.0,56430.0,0.05048894]
[1725581474826,4e-05,56431.0,56430.0,0.06448894]
[1725581474827,0.177247,56431.0,56430.0,0.06448894]
[1725581475048,4e-05,56431.0,56430.0,0.07848894]
[1725581475266,0.177247,56431.0,56430.0,0.06448894]
[1725581475481,0.01858488,56431.0,56430.0,0.06448894]
[1725581475951,0.01858488,56431.0,56430.0,0.17228894]
[1725581476164,0.90462188,56431.0,56430.0,0.07848894]
[1725581476374,0.90462188,56431.0,56430.0,0.04055848]
[1725581476597,1.25903688,56431.0,56430.0,0.04055848]
[1725581476814,1.25903688,56431.0,56430.0,0.05455848]
[1725581476815,0.90462188,56431.0,56430.0,0.05455848]
[1725581477104,0.90462188,56431.0,56430.0,0.04055848]
[1725581477581,0.55020688,56431.0,56430.0,0.05455848]
[1725581477798,0.90462188,56431.0,56430.0,0.05455848]
[1725581478040,0.90462188,56431.0,56430.0,0.02655848]
[1725581478293,0.90462188,56431.0,56430.0,0.04055848]
[1725581478522,0.90462188,56431.0,56430.0,0.05455848]
[1725581478747,0.90462188,56431.0,56430.0,0.02655848]
[1725581479210,0.90462188,56431.0,56430.0,0.05255848]
[1725581479663,1.25903688,56431.0,56430.0,0.05255848]
[1725581480841,0.886853,56431.0,56430.0,0.05255848]
[1725581481310,1.241268,56431.0,56430.0,0.05255848]
[1725581482679,1.298068,56431.0,56430.0,0.05255848]
[1725581484284,1.241268,56431.0,56430.0,0.05255848]
[1725581484759,1.595683,56431.0,56430.0,0.05255848]
[1725581485764,2.27657194,56431.0,56430.0,0.026]
[1725581485992,1.240669,56421.0,56420.0,0.02655848]
[1725581486234,1.595146,56421.0,56420.0,0.02655848]
[1725581486740,1.240669,56421.0,56420.0,0.02655848]
[1725581487225,1.240669,56421.0,56420.0,0.05255848]
[1725581489632,1.340669,56421.0,56420.0,0.05255848]
[1725581491549,0.531715,56421.0,56420.0,0.05255848]
[1725581491804,0.000816,56431.0,56430.0,0.02655848]
[1725581491805,0.178023,56431.0,56430.0,0.02655848]
[1725581492058,0.886853,56431.0,56430.0,0.02655848]
[1725581492289,1.26752553,56431.0,56430.0,0.02655848]
[1725581492553,1.41036853,56431.0,56430.0,0.02655848]
[1725581493046,1.26752553,56431.0,56430.0,0.02655848]
[1725581493526,1.90201453,56431.0,56430.0,0.02655848]
[1725581493791,1.89530453,56431.0,56430.0,0.02655848]
[1725581494557,1.89460453,56431.0,56428.0,0.009]
[1725581494792,1.89460453,56431.0,56420.0,0.11583]
[1725581494793,0.53166,56427.0,56426.0,0.009]
[1725581495046,0.53166,56427.0,56422.0,0.01755848]
[1725581495047,0.531688,56424.0,56423.0,0.009]
[1725581495299,0.417865,56423.0,56422.0,0.01795098]
[1725581495544,2.751489,56423.0,56422.0,0.02655848]
[1725581495778,2.464761,56423.0,56422.0,0.02655848]
[1725581496522,2.483325,56423.0,56422.0,0.02655848]
[1725581496770,2.290852,56423.0,56422.0,0.02655848]
[1725581497253,2.291852,56423.0,56422.0,0.03655848]
[1725581497499,1.778056,56423.0,56422.0,0.03655848]
[1725581497769,2.411476,56423.0,56422.0,0.03655848]
[1725581497988,1.715156,56423.0,56422.0,0.04555848]
[1725581498672,1.361191,56423.0,56422.0,0.04555848]
[1725581499146,1.006726,56423.0,56422.0,0.04555848]
[1725581499639,1.006726,56423.0,56422.0,0.06550403]
[1725581500113,1.006726,56423.0,56422.0,0.04555848]
[1725581501556,0.297796,56423.0,56422.0,0.04555848]
[1725581501789,0.652261,56423.0,56422.0,0.06548722]
[1725581502036,0.020564,56423.0,56422.0,0.17398722]
[1725581502480,0.020564,56423.0,56422.0,0.35122222]
[1725581502716,0.020564,56423.0,56422.0,0.17398722]
[1725581502972,0.015564,56423.0,56422.0,0.17398722]
[1725581503193,0.002,56423.0,56422.0,0.17398722]
[1725581505580,0.001,56423.0,56422.0,0.16398722]
[1725581505805,0.002,56423.0,56422.0,0.17798722]
[1725581506270,0.002,56423.0,56422.0,0.16898722]
[1725581506496,0.001,56423.0,56422.0,0.16898722]
[1725581506723,0.001,56423.0,56422.0,0.18098722]
[1725581507411,0.17801868,56423.0,56422.0,0.18098722]
[1725581507616,0.53248368,56423.0,56422.0,0.18098722]
[1725581507901,0.00078668,56423.0,56422.0,0.18098722]
[1725581508150,0.17801868,56423.0,56422.0,0.18098722]
[1725581508373,0.53248368,56423.0,56422.0,0.18098722]
[1725581509787,0.00078668,56423.0,56422.0,0.18098722]
[1725581514278,0.00078668,56423.0,56422.0,0.27568722]
[1725581514758,0.00078668,56423.0,56422.0,1.16540853]
[1725581514987,0.00078668,56423.0,56422.0,1.16740853]
[1725581515432,0.00078668,56423.0,56422.0,1.53187953]
[1725581515655,0.000815,56430.0,56429.0,0.54919848]
[1725581515936,0.000815,56430.0,56429.0,0.65789848]
[1725581516160,0.000815,56430.0,56429.0,1.03214913]
[1725581516842,0.000815,56430.0,56429.0,1.13584913]
[1725581517577,0.000815,56430.0,56429.0,1.14984913]
[1725581517805,0.000815,56430.0,56429.0,1.16384913]
[1725581518044,0.00082,56437.0,56429.0,1.16384913]
[1725581518045,0.00082,56453.0,56447.0,0.02655848]
[1725581518270,0.00082,56453.0,56452.0,0.23388859]
[1725581518503,0.00082,56453.0,56452.0,0.52327207]
[1725581518960,0.00082,56453.0,56452.0,0.15858616]
[1725581519193,0.532235,56453.0,56452.0,0.04634368]
[1725581519952,0.532235,56453.0,56452.0,0.02655848]
[1725581520619,0.532235,56453.0,56452.0,0.03955848]
[1725581520891,0.532235,56453.0,56452.0,0.05255848]
[1725581520892,0.886512,56453.0,56452.0,0.05255848]
[1725581521132,1.240789,56453.0,56452.0,0.026]
[1725581521387,2.7753721,56453.0,56452.0,0.026]
[1725581521622,2.367966,56453.0,56452.0,0.01254704]
[1725581522554,1.240144,56445.0,56444.0,0.009]
[1725581522781,1.559998,56445.0,56444.0,0.009]
[1725581523002,1.683098,56445.0,56444.0,0.009]
[1725581523227,0.885847,56443.0,56442.0,0.009]
[1725581523694,0.885865,56442.0,56441.0,0.00552004]
[1725581524368,0.885865,56442.0,56441.0,0.02515262]
[1725581524593,1.240211,56442.0,56441.0,0.00552004]
[1725581524865,0.885865,56442.0,56441.0,0.00552004]
[1725581525940,0.885865,56442.0,56441.0,0.01152004]
[1725581526176,0.354321,56446.0,56441.0,0.01152004]
[1725581526308,0.0538956,56453.0,56432.0,0.20733011]
[1725581526309,0.531477,56447.0,56446.0,0.00552004]
[1725581526516,0.885797,56447.0,56446.0,0.00552004]
[1725581526718,0.885797,56447.0,56446.0,0.02515262]
[1725581526927,0.885797,56447.0,56446.0,0.00552004]
[1725581527812,0.885797,56447.0,56446.0,0.00652004]
[1725581530192,0.8855838,56447.0,56446.0,0.00652004]
[1725581535285,0.354305,56449.0,56448.0,0.00552004]
[1725581535514,0.531456,56449.0,56448.0,0.00552004]
[1725581535747,0.885761,56449.0,56448.0,0.02518641]
[1725581535970,0.00082,56453.0,56446.0,0.001]
[1725581535971,0.885785,56447.0,56446.0,0.001]
[1725581536187,0.625804,56447.0,56441.0,0.00163]
[1725581536424,0.885865,56442.0,56441.0,0.00163]
[1725581536641,2.110748,56442.0,56441.0,0.00163]
[1725581536855,2.025416,56442.0,56441.0,0.00163]
[1725581537925,2.005356,56442.0,56441.0,0.00163]
[1725581538398,2.005356,56442.0,56441.0,0.00715004]
[1725581538399,1.9106,56442.0,56441.0,0.00715004]
[1725581538629,1.240211,56442.0,56441.0,0.00163]
[1725581538858,2.070167,56442.0,56441.0,0.00163]
[1725581539937,2.070167,56442.0,56441.0,0.00563]
[1725581540200,1.606861,56442.0,56441.0,0.01115004]
[1725581540414,1.606861,56442.0,56441.0,0.01415004]
[1725581541050,1.592901,56442.0,56441.0,0.01415004]
[1725581541992,1.510201,56442.0,56441.0,0.01415004]
[1725581544010,1.240211,56442.0,56441.0,0.01415004]
[1725581546925,1.594557,56442.0,56441.0,0.01415004]
[1725581547149,1.240211,56442.0,56441.0,0.00863]
[1725581547382,1.687957,56442.0,56441.0,0.00863]
[1725581547601,1.687957,56442.0,56429.0,0.0867]
[1725581547602,0.886052,56430.0,56429.0,0.00552004]
[1725581547921,1.656194,56430.0,56429.0,0.00552004]
[1725581548129,2.723475,56430.0,56429.0,0.00552004]
[1725581549014,2.114801,56430.0,56429.0,0.00552004]
[1725581549226,0.519907,56430.0,56425.0,0.00552004]
[1725581549449,1.240561,56426.0,56425.0,0.00552004]
[1725581549683,1.679343,56426.0,56425.0,0.00552004]
[1725581549884,2.033789,56426.0,56425.0,0.00552004]
[1725581550700,1.931761,56426.0,56425.0,0.00552004]
[1725581550932,1.931761,56426.0,56425.0,0.01152004]
[1725581551133,1.826607,56426.0,56425.0,0.01152004]
[1725581551642,1.826607,56426.0,56425.0,0.01352004]
[1725581552078,1.826607,56426.0,56425.0,0.01152004]
[1725581552297,1.595007,56426.0,56425.0,0.01152004]
[1725581552538,1.596007,56426.0,56425.0,0.01752004]
[1725581553477,1.597742,56426.0,56425.0,0.01752004]
[1725581553941,1.597742,56426.0,56425.0,0.01363]
[1725581553942,1.97835949,56426.0,56425.0,0.01363]
[1725581554920,1.62391349,56426.0,56425.0,0.01363]
[1725581555384,1.40676249,56426.0,56425.0,0.01915004]
[1725581559982,0.887115,56426.0,56425.0,0.23355004]
[1725581560428,1.241561,56426.0,56425.0,0.25344699]
[1725581560654,1.241561,56426.0,56425.0,0.15834699]
[1725581560852,1.241561,56426.0,56425.0,0.13845004]
[1725581561014,1.241561,56426.0,56425.0,0.01915004]
[1725581561625,1.02744705,56426.0,56425.0,0.01915004]
[1725581561825,1.20467005,56426.0,56425.0,0.01915004]
[1725581563213,1.55911605,56426.0,56425.0,0.01363]
[1725581563587,1.20467005,56426.0,56425.0,0.01915004]
[1725581564677,1.20467005,56426.0,56425.0,0.11425004]
[1725581564900,1.20467005,56426.0,56425.0,0.23355004]
[1725581565116,0.85022405,56426.0,56425.0,0.23355004]
[1725581565338,0.178223,56426.0,56425.0,0.23355004]
[1725581565575,0.001,56426.0,56425.0,0.25343191]
[1725581565801,0.001,56426.0,56425.0,0.78510991]
[1725581566025,0.001,56426.0,56425.0,0.43065791]
[1725581566448,0.001,56426.0,56425.0,1.13956191]
[1725581567789,0.177204,56432.0,56430.0,0.2144]
[1725581568029,0.177204,56432.0,56431.0,0.0951]
[1725581568243,0.177204,56432.0,56431.0,0.2144]
[1725581568452,0.177204,56432.0,56431.0,0.23428187]
[1725581568663,0.531612,56432.0,56431.0,0.23428187]
[1725581569091,0.177204,56432.0,56431.0,0.23428187]
[1725581569743,1.240428,56432.0,56431.0,0.14470191]
[1725581570189,1.240428,56432.0,56431.0,0.12482004]
[1725581571146,1.240428,56432.0,56431.0,0.12582004]
[1725581578234,1.26586144,56432.0,56431.0,0.12582004]
[1725581580017,1.26667644,56432.0,56431.0,0.12582004]
[1725581581754,1.241243,56432.0,56431.0,0.12582004]
[1725581581973,1.241243,56432.0,56431.0,0.001]
[1725581581974,1.723345,56432.0,56431.0,0.001]
[1725581582192,1.811545,56432.0,56431.0,0.001]
[1725581582451,2.165953,56432.0,56431.0,0.001]
[1725581583127,1.811545,56432.0,56431.0,0.001]
[1725581584237,1.86468226,56432.0,56431.0,0.001]
[1725581584900,1.811545,56432.0,56431.0,0.001]
[1725581585343,0.886835,56432.0,56431.0,0.2087]
[1725581585559,0.886835,56432.0,56431.0,0.21422004]
[1725581585779,0.886835,56432.0,56431.0,0.23405128]
[1725581586969,0.532427,56432.0,56431.0,0.23405128]
[1725581587410,0.000815,56432.0,56431.0,0.23405128]
[1725581587633,0.000815,56432.0,56431.0,0.41125828]
[1725581588290,0.000815,56432.0,56431.0,0.23405128]
[1725581588536,0.178019,56432.0,56431.0,0.23305128]
[1725581588763,0.000815,56432.0,56431.0,0.23705128]
[1725581589210,0.000815,56432.0,56431.0,0.41425828]
[1725581589886,0.000815,56432.0,56431.0,0.41925828]
[1725581590124,0.000815,56432.0,56431.0,0.77367328]
[1725581590349,0.000815,56432.0,56431.0,1.12808828]
[1725581591926,0.000815,56432.0,56431.0,1.48250328]
[1725581592147,0.000815,56432.0,56431.0,1.12808828]
[1725581593086,0.000815,56432.0,56431.0,1.11908828]
[1725581593306,0.000815,56432.0,56431.0,1.12908828]
[1725581593530,0.000815,56432.0,56431.0,0.42025828]
[1725581593737,0.532427,56432.0,56431.0,0.24305128]
[1725581593989,0.532427,56432.0,56431.0,0.24705128]
[1725581594223,0.532427,56432.0,56431.0,0.26105128]
[1725581594653,0.532427,56432.0,56431.0,0.24705128]
[1725581595086,0.532427,56432.0,56431.0,0.26105128]
[1725581595316,0.532427,56432.0,56431.0,0.24705128]
[1725581595746,0.886835,56432.0,56431.0,0.26105128]
[1725581595958,0.886835,56432.0,56431.0,0.24705128]
[1725581596206,1.241243,56432.0,56431.0,0.15155128]
[1725581596428,1.241243,56432.0,56431.0,0.14572004]
[1725581598623,1.241243,56432.0,56431.0,0.03352004]
[1725581601738,1.241243,56432.0,56431.0,0.05327922]
[1725581603899,0.532427,56432.0,56431.0,0.25487922]
[1725581604791,0.886835,56432.0,56431.0,0.25487922]
[1725581605768,2.95591242,56432.0,56431.0,0.04775918]
[1725581605999,1.529619,56432.0,56431.0,0.04775918]
[1725581606230,1.529619,56432.0,56431.0,0.028]
[1725581606679,1.240452,56431.0,56430.0,0.00552004]
[1725581606903,1.605109,56431.0,56430.0,0.00552004]
[1725581608474,1.605109,56431.0,56430.0,0.01252004]
[1725581609572,1.347236,56431.0,56430.0,0.01252004]
[1725581609794,1.347236,56431.0,56430.0,0.20712004]
[1725581609795,1.240452,56431.0,56430.0,0.20712004]
[1725581610003,0.886037,56431.0,56430.0,0.20912004]
[1725581610220,0.886037,56431.0,56430.0,0.23267083]
[1725581610651,0.886037,56431.0,56430.0,0.22567083]
[1725581610873,0.886037,56431.0,56430.0,0.22667083]
[1725581611997,0.886037,56431.0,56430.0,0.21012004]
[1725581614430,0.886037,56431.0,56430.0,0.22667083]
[1725581615296,0.886037,56431.0,56430.0,0.22830283]
[1725581615544,0.886853,56431.0,56430.0,0.22830283]
[1725581616414,0.886853,56431.0,56430.0,0.21175204]
[1725581616651,0.886853,56431.0,56430.0,0.20875204]
[1725581617135,0.886853,56431.0,56430.0,0.21775204]
[1725581618523,0.90541047,56431.0,56430.0,0.01615204]
[1725581618752,1.31935747,56431.0,56430.0,0.01615204]
[1725581618978,1.67377247,56431.0,56430.0,0.01615204]
[1725581619900,1.67377247,56431.0,56430.0,0.01115204]
[1725581620113,1.67377247,56431.0,56430.0,0.01415204]
[1725581620346,1.67377247,56431.0,56430.0,0.01015204]
[1725581620563,1.67377247,56431.0,56430.0,0.00715204]
[1725581620788,1.67377247,56431.0,56430.0,0.00815204]
[1725581621022,1.67377247,56431.0,56430.0,0.00915204]
[1725581621473,1.7269527,56431.0,56430.0,0.00915204]
[1725581621690,1.67377247,56431.0,56430.0,0.00915204]
[1725581623940,1.59968247,56431.0,56430.0,0.00915204]
[1725581624381,1.25982547,56431.0,56430.0,0.00915204]
[1725581624589,2.27458247,56431.0,56430.0,0.00915204]
[1725581625520,2.22276347,56431.0,56430.0,0.00915204]
[1725581625961,2.87013947,56431.0,56430.0,0.003632]
[1725581626182,2.5919047,56431.0,56430.0,0.003632]
[1725581626414,2.46461877,56431.0,56430.0,0.003632]
[1725581626625,2.41144847,56431.0,56430.0,0.003632]
[1725581626854,2.49120392,56431.0,56430.0,0.003632]
[1725581627101,2.41144847,56431.0,56430.0,0.003632]
[1725581627319,2.46461513,56431.0,56430.0,0.003632]
[1725581627760,2.49120392,56431.0,56430.0,0.003632]
[1725581631041,2.46460606,56431.0,56430.0,0.003632]
[1725581631274,2.41144847,56431.0,56430.0,0.003632]
[1725581631510,2.46460606,56431.0,56430.0,0.003632]
[1725581631726,2.46460418,56431.0,56430.0,0.003632]
[1725581632670,1.93203618,56431.0,56430.0,0.223532]
[1725581632898,1.79362447,56431.0,56430.0,0.223532]
[1725581635390,1.79362447,56431.0,56430.0,0.003632]
[1725581635545,1.84678018,56431.0,56430.0,0.003632]
[1725581635968,1.79362447,56431.0,56430.0,0.003632]